bitfinex-derivatives/quotes_SOLF0:USTF0_20250310
["timestamp","ask_amount","ask_price","bid_price","bid_amount"]
[1741645376543,4.2591,118.19,118.15,35.74]
[1741645376938,41.74104905,118.22,118.15,35.74]
[1741645377144,0.05854397,118.18,118.16,0.05581232]
[1741645379347,0.05854397,118.18,118.17,8.4664]
[1741645379648,0.05854397,118.18,118.16,0.05581232]
[1741645380043,8.4664,118.17,118.16,0.05581232]
[1741645380248,33.43459302,118.18,118.16,0.05581232]
[1741645380851,0.05854397,118.18,118.16,0.05581232]
[1741645382451,0.05854397,118.18,118.16,35.79581232]
[1741645383460,0.05854397,118.18,118.17,8.4664]
[1741645383860,4.3015,118.22,118.16,35.79581232]
[1741645384059,4.3015,118.22,118.19,8.4644]
[1741645384260,4.3015,118.22,118.19,35.74]
[1741645385154,12.8287194,118.22,118.19,35.8024707]
[1741645385556,37.74156845,118.22,118.19,35.8024707]
[1741645385758,4.3655194,118.22,118.19,35.8024707]
[1741645386560,0.0640194,118.22,118.19,35.8024707]
[1741645386961,0.0640194,118.22,118.2,8.4642]
[1741645387261,0.0640194,118.22,118.19,35.8024707]
[1741645388163,0.0640194,118.22,118.2,8.4642]
[1741645388461,0.0640194,118.22,118.19,35.8024707]
[1741645388662,0.0640194,118.22,118.19,44.2672707]
[1741645388962,0.0640194,118.22,118.19,35.8024707]
[1741645389960,8.5271194,118.22,118.19,35.8024707]
[1741645391357,0.0640194,118.22,118.19,44.2672707]
[1741645391563,0.0640194,118.22,118.19,35.8024707]
[1741645391765,33.37604905,118.28,118.19,69.17851975]
[1741645391963,33.37604905,118.28,118.2,4.1037]
[1741645392263,8.4598,118.27,118.22,8.4624]
[1741645392466,45.83754905,118.3,118.23,35.74]
[1741645392653,8.2563,118.3,118.23,69.11604905]
[1741645392854,0.05763869,118.28,118.25,0.05574489]
[1741645393162,0.05763869,118.28,118.26,35.74]
[1741645393756,0.05763869,118.28,118.26,44.1998]
[1741645393965,0.05763869,118.28,118.26,35.74]
[1741645395453,0.05763869,118.28,118.25,0.05574489]
[1741645395654,8.4597,118.27,118.25,0.05574489]
[1741645396265,0.05763869,118.28,118.25,0.05574489]
[1741645396266,8.51643869,118.28,118.25,0.05574489]
[1741645397057,0.05763869,118.28,118.25,0.05574489]
[1741645397253,0.05763869,118.28,118.26,35.74]
[1741645397859,0.05763869,118.28,118.26,44.1993]
[1741645398262,0.05763869,118.28,118.26,35.74]
[1741645398559,0.05763869,118.28,118.25,35.79574489]
[1741645398962,8.4594,118.27,118.25,35.79574489]
[1741645399360,0.05763869,118.28,118.25,35.79574489]
[1741645401164,0.05763869,118.28,118.25,44.25624489]
[1741645401365,0.05763869,118.28,118.25,35.79574489]
[1741645402866,0.05763869,118.28,118.25,44.25584489]
[1741645403470,0.05763869,118.28,118.26,8.4598]
[1741645403863,0.05763869,118.28,118.25,35.79574489]
[1741645406270,0.05763869,118.28,118.25,69.17179394]
[1741645407061,0.05763869,118.28,118.26,8.4592]
[1741645407267,0.05763869,118.28,118.25,69.17179394]
[1741645407761,0.05763869,118.28,118.27,8.4592]
[1741645407967,8.284,118.33,118.25,69.17179394]
[1741645408165,8.284,118.33,118.25,69.11604905]
[1741645408371,8.284,118.33,118.26,1.54197058]
[1741645408571,8.284,118.33,118.26,5.67887058]
[1741645408771,8.284,118.33,118.3,8.457]
[1741645408970,8.4545,118.34,118.29,35.72]
[1741645409172,0.05675006,118.33,118.3,0.06014597]
[1741645410473,46.11130926,118.44,118.32,33.37604905]
[1741645410777,12.9572,118.43,118.35,33.37604905]
[1741645410981,8.4495,118.41,118.36,35.72]
[1741645411276,12.9572,118.43,118.36,35.72]
[1741645411477,46.33324905,118.43,118.36,35.72]
[1741645411672,33.43324221,118.41,118.38,0.05407177]
[1741645411874,33.37604905,118.39,118.33,35.72]
[1741645412072,33.37604905,118.41,118.33,35.72]
[1741645412273,33.37604905,118.39,118.33,35.72]
[1741645412476,4.0757,118.38,118.33,35.72]
[1741645412766,8.4534,118.36,118.33,35.72]
[1741645412972,42.09411831,118.37,118.34,0.06321785]
[1741645413172,17.17026926,118.37,118.34,0.06321785]
[1741645413776,8.71806926,118.37,118.34,0.06321785]
[1741645414372,17.17056926,118.37,118.34,0.06321785]
[1741645414767,8.71806926,118.37,118.34,0.06321785]
[1741645414972,0.05986926,118.37,118.34,8.51731785]
[1741645415183,0.05986926,118.37,118.34,0.06321785]
[1741645417068,4.4518,118.42,118.35,33.37604905]
[1741645417375,8.4256,118.45,118.37,33.37604905]
[1741645417572,8.4256,118.45,118.37,312.23604905]
[1741645418178,0.06492009,118.42,118.4,0.05447263]
[1741645418374,0.06492009,118.42,118.41,35.7]
[1741645420181,0.06492009,118.42,118.4,0.05447263]
[1741645420880,8.4492,118.41,118.4,0.05447263]
[1741645421075,0.06492009,118.42,118.4,0.05447263]
[1741645421983,69.05604905,118.41,118.34,35.68]
[1741645422184,4.1574,118.4,118.34,35.68]
[1741645422375,8.4531,118.36,118.34,35.68]
[1741645422682,37.62624905,118.39,118.34,35.68]
[1741645423183,0.05884927,118.38,118.35,0.05714209]
[1741645423483,8.4527,118.37,118.35,0.05714209]
[1741645423880,0.05884927,118.38,118.35,0.05714209]
[1741645424382,8.4528,118.36,118.35,0.05714209]
[1741645425685,8.4555,118.33,118.29,35.68]
[1741645426574,8.4557,118.32,118.29,35.68]
[1741645426778,33.37604905,118.37,118.29,35.68]
[1741645426979,0.05773637,118.32,118.3,0.05356385]
[1741645427183,33.37604905,118.37,118.3,0.05356385]
[1741645427184,37.53294905,118.37,118.3,0.05356385]
[1741645427483,0.06166922,118.32,118.3,0.05356385]
[1741645427678,37.53294905,118.37,118.3,0.05356385]
[1741645427886,0.06145439,118.32,118.3,8.51056385]
[1741645428186,0.06177683,118.32,118.3,0.05356385]
[1741645429183,8.51797683,118.32,118.3,0.05356385]
[1741645430886,8.4564,118.31,118.3,0.05356385]
[1741645432089,0.06177683,118.32,118.3,0.05356385]
[1741645432783,0.06177683,118.32,118.3,35.73356385]
[1741645433088,4.1569,118.37,118.31,33.37604905]
[1741645433590,8.4532,118.36,118.31,41.83194905]
[1741645433888,8.4532,118.36,118.31,33.37604905]
[1741645434088,8.4532,118.36,118.32,8.4557]
[1741645434290,0.05692583,118.35,118.33,35.68]
[1741645434689,8.51082583,118.35,118.33,35.68]
[1741645434886,0.05692583,118.35,118.33,35.68]
[1741645435989,0.05692583,118.35,118.33,44.1344]
[1741645436488,8.4549,118.33,118.32,0.054924]
[1741645436685,0.05692583,118.35,118.32,0.054924]
[1741645437590,8.4549,118.33,118.32,0.054924]
[1741645439488,8.4575,118.3,118.27,314.46]
[1741645439685,8.4575,118.3,118.27,278.78]
[1741645439889,4.2046,118.34,118.27,278.78]
[1741645440089,8.4575,118.3,118.27,278.78]
[1741645440293,4.2046,118.34,118.27,278.78]
[1741645440691,0.05372735,118.32,118.29,0.06365105]
[1741645440891,0.05372735,118.32,118.29,35.74365105]
[1741645442395,0.05372735,118.32,118.29,44.20135105]
[1741645442599,0.05372735,118.32,118.29,35.74365105]
[1741645443999,0.05372735,118.32,118.29,44.20125105]
[1741645444799,0.05372735,118.32,118.3,8.4571]
[1741645445188,0.05372735,118.32,118.29,35.74365105]
[1741645445798,0.05372735,118.32,118.29,44.20095105]
[1741645445999,0.05372735,118.32,118.29,35.74365105]
[1741645446197,0.05372735,118.32,118.31,8.4564]
[1741645446498,4.38,118.39,118.31,1.54126945]
[1741645446695,8.6156,118.42,118.32,33.37604905]
[1741645446994,8.6156,118.42,118.34,33.37604905]
[1741645447300,33.37604905,118.41,118.32,41.65474905]
[1741645447600,0.05950207,118.38,118.35,0.05983923]
[1741645448602,0.05950207,118.38,118.35,1.600836]
[1741645448993,0.05950207,118.38,118.35,0.05983923]
[1741645450102,0.05950207,118.38,118.35,8.51303923]
[1741645450302,0.05950207,118.38,118.35,0.05983923]
[1741645450502,0.05950207,118.38,118.36,35.68]
[1741645450703,0.05950207,118.38,118.37,8.4521]
[1741645450898,0.05950207,118.38,118.36,35.68]
[1741645452698,0.05950207,118.38,118.37,8.4521]
[1741645452899,4.4079,118.45,118.36,71.59604905]
[1741645453199,4.4079,118.45,118.41,8.4489]
[1741645453503,33.37604905,118.43,118.37,35.68]
[1741645454003,0.05336387,118.41,118.39,0.05713819]
[1741645454597,33.42941292,118.41,118.37,35.68]
[1741645454797,33.37604905,118.39,118.34,278.82]
[1741645455006,33.37604905,118.39,118.34,314.5]
[1741645455601,33.37604905,118.39,118.32,12.5705]
[1741645455804,33.37604905,118.37,118.29,314.42]
[1741645456804,33.37604905,118.35,118.29,278.76]
[1741645457116,8.58582726,118.34,118.32,0.05965698]
[1741645458501,17.04052726,118.34,118.32,0.05965698]
[1741645458707,8.58582726,118.34,118.32,0.05965698]
[1741645459310,17.04022726,118.34,118.32,0.05965698]
[1741645459707,8.58582726,118.34,118.32,0.05965698]
[1741645460110,4.32922726,118.34,118.32,0.05965698]
[1741645461006,0.05962726,118.34,118.32,0.05965698]
[1741645461909,8.4549,118.33,118.32,0.05965698]
[1741645462105,0.05962726,118.34,118.32,0.05965698]
[1741645462511,8.51392726,118.34,118.32,0.05965698]
[1741645462814,0.05962726,118.34,118.32,0.05965698]
[1741645463607,8.4549,118.33,118.32,0.05965698]
[1741645463809,33.37604905,118.33,118.26,1.5416923]
[1741645464004,39.9116,118.32,118.25,18.60376817]
[1741645464210,8.4587,118.28,118.24,287.2211]
[1741645464406,8.4587,118.28,118.24,8.4611]
[1741645464708,37.44114905,118.31,118.23,100.68431855]
[1741645464913,0.05936822,118.27,118.25,0.05950617]
[1741645465407,8.46,118.26,118.25,0.05950617]
[1741645466417,8.461,118.25,118.21,8.4632]
[1741645467712,0.0610999,118.24,118.22,0.06061725]
[1741645467918,0.0610999,118.24,118.22,8.52341725]
[1741645468122,0.0610999,118.24,118.22,0.06061725]
[1741645468322,0.0610999,118.24,118.23,35.68]
[1741645468522,39.7451,118.31,118.23,35.68]
[1741645468825,48.2022,118.31,118.26,8.4596]
[1741645469024,73.12114905,118.31,118.23,35.68]
[1741645469426,8.4584,118.29,118.24,8.4614]
[1741645469723,0.06151155,118.28,118.26,0.06183308]
[1741645470623,0.06151155,118.28,118.21,35.68]
[1741645470926,8.52041155,118.28,118.24,8.4609]
[1741645471219,0.06151155,118.28,118.21,35.68]
[1741645471625,8.4596,118.27,118.23,8.4619]
[1741645471925,0.06151155,118.28,118.23,0.05698521]
[1741645472918,35.74151155,118.28,118.23,0.05698521]
[1741645473117,8.461,118.25,118.23,0.05698521]
[1741645473527,8.5260077,118.25,118.23,0.05698521]
[1741645474223,0.0650077,118.25,118.23,0.05698521]
[1741645475025,8.5260077,118.25,118.23,0.05698521]
[1741645475730,8.4614,118.24,118.23,0.05698521]
[1741645475932,0.0650077,118.25,118.23,0.05698521]
[1741645476432,8.5260077,118.25,118.23,0.05698521]
[1741645476827,0.0650077,118.25,118.23,0.05698521]
[1741645477022,0.0650077,118.25,118.16,33.37604905]
[1741645477223,33.37604905,118.26,118.17,278.82]
[1741645477426,8.4643,118.2,118.17,278.82]
[1741645478033,33.37604905,118.24,118.14,33.37604905]
[1741645478332,0.06457955,118.2,118.15,35.68]
[1741645478734,0.06457955,118.2,118.16,33.37604905]
[1741645479430,0.06457955,118.2,118.14,33.37604905]
[1741645479626,8.52947955,118.2,118.15,44.1675]
[1741645479830,0.06457955,118.2,118.15,35.7]
[1741645480233,0.06457955,118.2,118.18,8.4653]
[1741645480433,0.06457955,118.2,118.18,35.7]
[1741645480934,0.06457955,118.2,118.19,8.465]
[1741645481132,48.2784,118.25,118.18,69.07604905]
[1741645481339,48.2784,118.25,118.18,35.7]
[1741645481734,8.4617,118.24,118.19,8.4649]
[1741645481930,48.2784,118.25,118.18,35.7]
[1741645482332,0.06182228,118.23,118.21,8.4631]
[1741645482538,0.06182228,118.23,118.21,35.7]
[1741645485729,8.52432228,118.23,118.21,35.7]
[1741645486135,8.52432228,118.23,118.2,0.06038013]
[1741645486836,0.06182228,118.23,118.2,8.52458013]
[1741645487237,0.06182228,118.23,118.2,0.06038013]
[1741645487439,0.06182228,118.23,118.21,8.4629]
[1741645490331,0.06182228,118.23,118.22,8.4628]
[1741645490637,0.06182228,118.23,118.2,0.06038013]
[1741645491040,0.06182228,118.23,118.2,8.52418013]
[1741645491945,0.06182228,118.23,118.21,8.4635]
[1741645492132,0.06182228,118.23,118.2,0.06038013]
[1741645492540,84.4577,118.46,118.2,0.06038013]
[1741645492541,8.6552,118.29,118.2,34.97913874]
[1741645492743,8.6552,118.29,118.21,1.54270956]
[1741645492940,8.4586,118.28,118.24,8.4609]
[1741645493140,8.6552,118.29,118.22,35.7]
[1741645493645,8.4589,118.28,118.24,8.4609]
[1741645493845,0.0618513,118.27,118.24,8.51938024]
[1741645494244,0.0618513,118.27,118.24,0.05848024]
[1741645494445,0.0618513,118.27,118.25,8.4606]
[1741645495343,0.0618513,118.27,118.24,8.51968024]
[1741645495741,0.0618513,118.27,118.24,0.05848024]
[1741645496142,0.0618513,118.27,118.25,35.68]
[1741645497148,8.456,118.32,118.25,35.68]
[1741645497548,8.456,118.32,118.27,8.4586]
[1741645497747,8.456,118.32,118.25,35.68]
[1741645498342,37.58934905,118.33,118.27,0.05796183]
[1741645498343,12.6685,118.33,118.27,0.05796183]
[1741645498551,0.05363193,118.3,118.28,35.68]
[1741645500548,0.05363193,118.3,118.27,0.05796183]
[1741645501647,0.05363193,118.3,118.25,35.68]
[1741645502251,0.05363193,118.3,118.23,35.68]
[1741645502647,69.05604905,118.31,118.23,35.68]
[1741645502850,69.05604905,118.31,118.25,8.52143536]
[1741645502851,0.06251449,118.28,118.25,8.52143536]
[1741645503051,0.06251449,118.28,118.25,0.06123536]
[1741645503448,8.4598,118.27,118.25,0.06123536]
[1741645503750,0.06251449,118.28,118.25,0.06123536]
[1741645503953,8.52141449,118.28,118.25,0.06123536]
[1741645504154,0.06251449,118.28,118.25,0.06123536]
[1741645505053,33.37604905,118.27,118.18,33.37604905]
[1741645505246,33.37604905,118.27,118.16,412.3452676]
[1741645505448,33.37604905,118.27,118.17,37.22295574]
[1741645505649,33.37604905,118.27,118.17,35.68]
[1741645506052,33.37604905,118.27,118.18,8.4652]
[1741645506355,0.05784172,118.23,118.21,0.06281483]
[1741645506554,0.05784172,118.23,118.16,406.88261855]
[1741645506756,8.4633,118.22,118.17,8.4659]
[1741645506952,0.05784172,118.23,118.16,348.03604905]
[1741645507152,8.4654,118.19,118.14,8.468]
[1741645507352,8.4654,118.19,118.15,35.68]
[1741645507650,8.51962251,118.18,118.16,0.02529868]
[1741645507850,0.05352251,118.18,118.16,0.02529868]
[1741645508060,0.05352251,118.18,118.12,92.22261855]
[1741645509253,0.05352251,118.18,118.13,8.4686]
[1741645509453,0.05352251,118.18,118.12,92.22261855]
[1741645510161,8.4667,118.17,118.12,100.69211855]
[1741645510350,0.05352251,118.18,118.12,92.22261855]
[1741645510351,35.73352251,118.18,118.12,92.22261855]
[1741645510653,8.4693,118.13,118.12,72.11461855]
[1741645510847,8.4693,118.13,118.11,372.60741612]
[1741645510848,35.68,118.15,118.09,44.966742]
[1741645511048,0.06232303,118.13,118.07,33.37604905]
[1741645511255,0.06232303,118.13,118.07,69.05604905]
[1741645511760,0.06232303,118.13,118.07,77.52934905]
[1741645512057,0.06232303,118.13,118.07,33.37604905]
[1741645512457,8.4702,118.12,118.07,33.37604905]
[1741645512648,0.06232303,118.13,118.07,33.37604905]
[1741645512852,8.4711,118.11,118.07,41.84904905]
[1741645513053,35.68,118.15,118.07,33.37604905]
[1741645513250,0.06454999,118.1,118.07,33.37604905]
[1741645513449,0.06454999,118.1,118.07,69.07604905]
[1741645514047,0.06454999,118.1,118.08,8.4724]
[1741645514251,0.06454999,118.1,118.07,69.07604905]
[1741645514859,0.06454999,118.1,118.07,77.54924905]
[1741645515060,0.06454999,118.1,118.07,69.07604905]
[1741645515563,0.06454999,118.1,118.07,33.37604905]
[1741645516563,8.53604999,118.1,118.07,33.37604905]
[1741645516763,0.06454999,118.1,118.07,33.37604905]
[1741645517262,0.06454999,118.1,118.08,8.4724]
[1741645517961,0.06454999,118.1,118.07,41.84944905]
[1741645518562,8.53614999,118.1,118.07,33.37604905]
[1741645518765,0.06454999,118.1,118.06,4.3383]
[1741645519465,0.06454999,118.1,118.07,33.37604905]
[1741645519963,0.06454999,118.1,118.08,8.4725]
[1741645521056,0.06454999,118.1,118.07,33.37604905]
[1741645522368,0.06454999,118.1,118.08,35.7]
[1741645523460,0.06454999,118.1,118.08,44.1727]
[1741645523657,0.06454999,118.1,118.08,35.7]
[1741645525565,0.06454999,118.1,118.06,4.3383]
[1741645525766,8.4721,118.09,118.06,4.3383]
[1741645525965,0.06454999,118.1,118.06,4.3383]
[1741645526768,0.06454999,118.1,118.07,8.4731]
[1741645526967,0.06454999,118.1,118.06,4.3383]
[1741645527369,8.53664999,118.1,118.06,12.8122]
[1741645527563,0.06454999,118.1,118.06,12.8122]
[1741645528069,0.06454999,118.1,118.08,8.4728]
[1741645528370,0.06454999,118.1,118.08,35.72]
[1741645528663,0.06454999,118.1,118.09,8.4721]
[1741645528869,8.4689,118.14,118.09,8.4721]
[1741645529169,8.4689,118.14,118.1,8.4712]
[1741645529468,8.4696,118.13,118.08,39.953]
[1741645530068,0.06372018,118.12,118.09,8.53330929]
[1741645530269,8.53412018,118.12,118.09,20.9654528]
[1741645530473,0.06372018,118.12,118.09,20.9654528]
[1741645531470,8.4714,118.1,118.09,0.06150929]
[1741645535372,0.06372018,118.12,118.09,0.06150929]
[1741645535373,8.4711,118.11,118.09,0.06150929]
[1741645535571,0.06372018,118.12,118.09,0.06150929]
[1741645535875,8.4712,118.11,118.09,0.06150929]
[1741645536368,8.4714,118.1,118.09,0.06150929]
[1741645536569,0.06372018,118.12,118.09,0.06150929]
[1741645536764,0.06372018,118.12,118.09,20.9654528]
[1741645536970,8.53422018,118.12,118.09,20.9654528]
[1741645537368,0.06372018,118.12,118.09,20.9654528]
[1741645537573,0.06372018,118.12,118.09,29.4371528]
[1741645537773,0.06372018,118.12,118.09,20.9654528]
[1741645538175,8.53402018,118.12,118.09,20.9654528]
[1741645538376,0.06372018,118.12,118.09,20.9654528]
[1741645538875,0.06372018,118.12,118.09,0.06150929]
[1741645540070,8.4714,118.1,118.09,0.06150929]
[1741645540576,0.06372018,118.12,118.09,56.6654528]
[1741645540969,0.06372018,118.12,118.09,35.76150929]
[1741645541677,8.53432018,118.12,118.09,44.23330929]
[1741645541876,0.06372018,118.12,118.09,35.76150929]
[1741645542271,8.4714,118.1,118.09,35.76150929]
[1741645542577,0.06372018,118.12,118.09,56.6654528]
[1741645542777,0.06372018,118.12,118.1,8.471]
[1741645542975,0.06372018,118.12,118.09,56.6654528]
[1741645543375,0.06372018,118.12,118.11,8.4707]
[1741645543771,8.4682,118.15,118.11,20.90394351]
[1741645543977,8.4682,118.15,118.12,8.4697]
[1741645544176,8.4682,118.15,118.11,20.90394351]
[1741645544579,20.90394351,118.18,118.12,35.7]
[1741645544976,0.06189665,118.16,118.14,0.0639823]
[1741645545680,8.4678,118.15,118.14,0.0639823]
[1741645547480,56.66584016,118.16,118.09,20.90394351]
[1741645547776,56.60394351,118.16,118.09,20.90394351]
[1741645548172,8.4705,118.12,118.09,29.37594351]
[1741645548581,8.53015311,118.12,118.09,29.43152426]
[1741645548773,0.05965311,118.12,118.09,20.95962426]
[1741645548981,20.96359662,118.12,118.09,0.05568075]
[1741645549481,0.05965311,118.12,118.06,8.4407]
[1741645549778,0.05965311,118.12,118.07,8.4734]
[1741645549982,8.4726,118.09,118.07,20.90394351]
[1741645550184,56.60394351,118.14,118.07,20.90394351]
[1741645550381,5.04968804,118.13,118.07,20.90394351]
[1741645550582,8.4721,118.1,118.07,20.90394351]
[1741645550777,0.06069828,118.12,118.07,20.90394351]
[1741645550973,0.06069828,118.12,118.08,8.4724]
[1741645551180,8.4708,118.11,118.08,8.4724]
[1741645551781,8.4708,118.11,118.07,20.90394351]
[1741645552083,0.06069828,118.12,118.07,20.90394351]
[1741645552283,35.7,118.11,118.05,20.90394351]
[1741645552484,8.473,118.08,118.05,20.90394351]
[1741645552679,0.05346003,118.09,118.05,20.90394351]
[1741645553482,0.05346003,118.09,118.04,4.049]
[1741645554183,0.05346003,118.09,118.03,20.90394351]
[1741645554376,20.90394351,118.05,117.99,18.71738859]
[1741645554582,28.4735,118.08,118.03,8.4764]
[1741645554881,20.90394351,118.09,118.03,44.1764]
[1741645555082,0.06399752,118.07,118.03,56.9443]
[1741645555281,0.06399752,118.07,118.03,48.4679]
[1741645556493,0.06399752,118.07,118.03,12.7679]
[1741645557188,0.06399752,118.07,118.03,46.25216858]
[1741645557491,0.06399752,118.07,118.04,8.4756]
[1741645557684,0.06399752,118.07,118.05,35.7]
[1741645558480,35.7,118.11,118.05,35.7]
[1741645558684,44.171,118.11,118.05,35.7]
[1741645558989,11.52782731,118.12,118.05,69.18426858]
[1741645559291,11.52782731,118.12,118.05,35.7]
[1741645559493,0.06194516,118.1,118.07,0.05429575]
[1741645559885,11.52782731,118.12,118.09,8.4721]
[1741645560186,11.52782731,118.12,118.08,35.7]
[1741645560494,33.48426858,118.16,118.09,4.4383]
[1741645560687,5.03002763,118.15,118.09,4.4383]
[1741645560890,51.66962731,118.17,118.09,4.4383]
[1741645561089,0.06428126,118.13,118.11,0.05534077]
[1741645561493,8.4702,118.12,118.11,0.05534077]
[1741645561684,0.06428126,118.13,118.11,0.05534077]
[1741645562799,8.47,118.12,118.11,0.05534077]
[1741645564688,0.06428126,118.13,118.11,0.05534077]
[1741645565183,0.06428126,118.13,118.11,44.22564077]
[1741645566091,0.06428126,118.13,118.11,35.75534077]
[1741645566494,0.06428126,118.13,118.11,44.22604077]
[1741645566794,237.9777,118.19,118.11,35.75534077]
[1741645566993,5.03062308,118.18,118.11,35.7]
[1741645567294,5.03062308,118.17,118.11,35.7]
[1741645567484,33.48426858,118.18,118.11,44.1704]
[1741645567684,5.0293085,118.17,118.11,44.1704]
[1741645567893,0.06163768,118.16,118.13,0.06167237]
[1741645568782,8.4682,118.15,118.13,0.06167237]
[1741645568986,0.06163768,118.16,118.13,0.06167237]
[1741645569594,8.4683,118.15,118.13,0.06167237]
[1741645569894,0.06163768,118.16,118.13,0.06167237]
[1741645570093,8.52913768,118.16,118.13,0.06167237]
[1741645570993,8.4653,118.19,118.15,8.4678]
[1741645571195,42.00246858,118.22,118.15,12.8065]
[1741645571396,8.466,118.18,118.15,4.3387]
[1741645572193,8.52963707,118.18,118.15,4.40027704]
[1741645573793,0.06363707,118.18,118.15,12.86777704]
[1741645574595,0.06363707,118.18,118.16,8.467]
[1741645574995,0.06363707,118.18,118.15,4.40027704]
[1741645575297,0.06363707,118.18,118.15,12.86757704]
[1741645575995,0.06363707,118.18,118.15,4.40027704]
[1741645576196,194.0,118.23,118.15,8.82057704]
[1741645576392,20.88252184,118.22,118.15,29.64152184]
[1741645576699,20.88252184,118.22,118.17,8.4663]
[1741645576700,8.4637,118.21,118.17,8.4663]
[1741645576897,8.4637,118.21,118.18,35.68]
[1741645577499,0.06011634,118.21,118.18,35.74477702]
[1741645577994,0.06011634,118.21,118.18,44.21007702]
[1741645578293,0.06011634,118.21,118.18,35.74477702]
[1741645578693,8.52361634,118.21,118.18,35.74477702]
[1741645579202,0.06011634,118.21,118.18,35.74477702]
[1741645579498,8.465,118.19,118.18,35.74477702]
[1741645579697,0.06011634,118.21,118.18,35.74477702]
[1741645580989,20.88252184,118.26,118.19,20.88252184]
[1741645581194,29.34292184,118.26,118.19,20.88252184]
[1741645581505,29.34292184,118.26,118.2,4.4349]
[1741645581798,29.34292184,118.26,118.22,8.4624]
[1741645582199,0.05397256,118.25,118.23,0.06083237]
[1741645582797,0.05397256,118.25,118.24,8.4614]
[1741645583104,0.05397256,118.25,118.24,44.1214]
[1741645583303,0.05397256,118.25,118.24,35.66]
[1741645585005,0.05397256,118.25,118.24,44.1214]
[1741645585605,20.88252184,118.28,118.25,8.4603]
[1741645585805,20.88252184,118.28,118.24,35.66]
[1741645586203,20.88252184,118.28,118.25,8.4603]
[1741645586398,20.88252184,118.3,118.24,40.0691]
[1741645586605,20.88252184,118.3,118.27,8.4589]
[1741645586806,0.06374315,118.28,118.27,35.64]
[1741645587505,20.94626499,118.28,118.27,35.64]
[1741645588298,29.40476499,118.28,118.27,35.64]
[1741645589806,29.40476499,118.28,118.26,0.05713811]
[1741645590614,20.94626499,118.28,118.26,0.05713811]
[1741645590810,8.4592,118.27,118.26,0.05713811]
[1741645591018,20.94626499,118.28,118.26,0.05713811]
[1741645592415,29.40516499,118.28,118.26,0.05713811]
[1741645593010,8.4592,118.27,118.26,0.05713811]
[1741645596316,20.94626499,118.28,118.26,0.05713811]
[1741645597025,8.4592,118.27,118.26,0.05713811]
[1741645599222,29.40516499,118.28,118.26,0.05713811]
[1741645600621,0.06374315,118.28,118.26,8.51693811]
[1741645600821,0.06374315,118.28,118.26,0.05713811]
[1741645601123,8.52264315,118.28,118.26,0.05713811]
[1741645601319,20.94626499,118.28,118.26,0.05713811]
[1741645601827,8.4592,118.27,118.26,0.05713811]
[1741645604422,20.94626499,118.28,118.26,0.05713811]
[1741645604925,20.94626499,118.28,118.26,8.51693811]
[1741645605130,20.94626499,118.28,118.26,0.05713811]
[1741645605918,20.94626499,118.28,118.26,8.51673811]
[1741645605919,0.06374315,118.28,118.26,8.51673811]
[1741645606229,20.94626499,118.28,118.26,0.05713811]
[1741645606527,29.40526499,118.28,118.26,0.05713811]
[1741645607427,0.06374315,118.28,118.26,0.05713811]
[1741645608029,8.4592,118.27,118.26,0.05713811]
[1741645610423,8.52264315,118.28,118.26,0.05713811]
[1741645611429,0.06374315,118.28,118.26,0.05713811]
[1741645612428,20.94626499,118.28,118.26,0.05713811]
[1741645613433,8.4592,118.27,118.26,0.05713811]
[1741645613927,0.06374315,118.28,118.26,0.05713811]
[1741645614530,8.4567,118.31,118.27,44.0592]
[1741645615331,8.456,118.32,118.29,8.4578]
[1741645615534,66.9938311,118.34,118.28,8.2238]
[1741645615738,0.06128273,118.32,118.29,0.0570344]
[1741645616134,8.51698273,118.32,118.29,0.0570344]
[1741645616533,0.06128273,118.32,118.3,35.6]
[1741645617436,46.11130926,118.34,118.3,35.6]
[1741645617740,92.22261855,118.35,118.3,56.48252184]
[1741645617930,92.22261855,118.35,118.32,8.4551]
[1741645618134,11.75527994,118.37,118.33,35.6]
[1741645618639,0.06240375,118.36,118.34,0.06299436]
[1741645620440,0.06240375,118.36,118.34,8.51709436]
[1741645620636,0.06240375,118.36,118.34,4.52009436]
[1741645621243,20.94492559,118.36,118.34,0.06299436]
[1741645623332,0.06240375,118.36,118.34,0.06299436]
[1741645623740,20.94492559,118.36,118.34,0.06299436]
[1741645624833,0.06240375,118.36,118.34,0.06299436]
[1741645625434,20.88252184,118.35,118.29,327.4746]
[1741645625739,25.24042184,118.35,118.29,319.0171]